bitfinex/quotes_ETHUSD_20260209
["timestamp","ask_amount","ask_price","bid_price","bid_amount"]
[1770612219385,1.19729486,2091.6,2091.3,0.002]
[1770612219556,0.002,2091.6,2091.3,0.99470999]
[1770612220199,1.1972687,2091.6,2091.3,0.002]
[1770612220562,2.11371541,2091.6,2091.3,0.002]
[1770612222259,0.91644671,2091.5,2091.3,0.002]
[1770612224771,2.11181823,2091.4,2091.2,0.001]
[1770612225175,1.19537152,2091.4,2091.2,0.001]
[1770612225370,1.19536035,2091.5,2091.2,0.001]
[1770612226172,4.53930201,2091.6,2091.2,0.001]
[1770612226397,0.002,2091.6,2091.2,0.91633848]
[1770612227798,0.002,2091.6,2091.3,0.91533848]
[1770612229702,0.002,2091.6,2091.4,0.91533848]
[1770612229890,0.002,2091.6,2091.4,0.91633848]
[1770612232273,0.002,2091.6,2091.4,1.19636939]
[1770612232472,0.002,2091.6,2091.4,2.11170787]
[1770612233002,0.002,2091.6,2091.4,0.91633848]
[1770612235503,0.002,2091.6,2091.4,0.001]
[1770612240322,0.002,2091.6,2091.4,0.91633848]
[1770612242322,0.002,2091.6,2091.4,0.001]
[1770612242705,0.002,2091.6,2091.5,0.001]
[1770612244504,0.91310865,2091.6,2091.4,0.001]
[1770612245428,2.10642301,2091.5,2091.2,0.001]
[1770612246332,0.91110865,2091.4,2091.2,0.001]
[1770612247634,2.10648961,2091.4,2091.2,0.001]
[1770612249745,0.91110865,2091.2,2090.8,0.001]
[1770612250214,0.91110865,2091.2,2090.6,0.001]
[1770612251233,1.19538096,2091.4,2090.7,0.91533848]
[1770612251234,2.10648961,2091.4,2090.7,0.91533848]
[1770612252330,0.91110865,2091.3,2090.6,0.001]
[1770612255538,1.19548584,2091.2,2090.8,0.001]
[1770612257230,1.19547177,2091.3,2090.8,0.97735528]
[1770612257930,4.78359442,2091.4,2090.8,0.97735528]
[1770612258946,1.19737152,2091.4,2090.9,0.97635528]
[1770612259245,0.002,2091.4,2090.9,0.97635528]
[1770612260551,0.002,2091.6,2091.3,0.97635528]
[1770612261234,0.002,2091.6,2091.1,0.97635528]
[1770612262715,0.002,2091.6,2091.2,0.97635528]
[1770612265221,0.002,2091.6,2091.2,1.19546101]
[1770612265429,0.002,2091.6,2091.3,0.97635528]
[1770612267852,0.002,2091.6,2091.4,0.97635528]
[1770612268552,0.002,2091.8,2091.3,1.19539754]
[1770612268757,0.002,2091.8,2091.5,0.97635528]
[1770612269824,0.002,2091.8,2091.4,2.17172253]
[1770612270049,0.002,2091.8,2091.5,0.97635528]
[1770612271047,0.002,2091.8,2091.4,1.19536725]
[1770612271356,0.002,2091.8,2091.5,0.97635528]
[1770612271655,0.002,2092.0,2091.7,0.97635528]
[1770612271829,0.002,2092.0,2091.8,0.97635528]
[1770612274960,0.002,2092.0,2091.8,2.17145313]
[1770612275771,0.002,2092.2,2091.9,0.97635528]
[1770612279469,0.10116419,2092.3,2092.1,0.97635528]
[1770612280056,0.10116419,2092.3,2092.0,0.97635528]
[1770612280578,0.10116419,2092.3,2092.0,0.97735528]
[1770612280951,1.29603379,2092.3,2092.0,0.001]
[1770612281153,0.002,2092.2,2092.0,0.001]
[1770612288089,0.97629887,2092.2,2091.8,0.001]
[1770612289581,0.002,2092.2,2091.8,0.001]
[1770612290181,0.002,2092.2,2091.9,0.91309053]
[1770612292184,0.002,2092.2,2091.9,2.10816974]
[1770612292861,0.002,2092.2,2091.8,1.19611639]
[1770612293057,0.002,2092.2,2091.8,0.001]
[1770612293264,0.002,2092.2,2092.0,0.001]
[1770612296002,0.002,2092.2,2091.8,0.001]
[1770612296281,0.97629887,2092.2,2091.8,0.001]
[1770612296696,0.97629887,2092.2,2091.4,2.10842095]
[1770612296996,0.97629887,2092.2,2091.5,2.1084009]
[1770612297995,2.16927042,2092.1,2091.5,2.1084009]
[1770612300483,1.19676485,2092.5,2091.9,0.91309053]
[1770612300687,0.002,2092.5,2092.0,9.16132451]
[1770612300998,0.002,2092.5,2092.3,0.91309053]
[1770612301166,0.34855226,2092.8,2092.3,0.91309053]
[1770612301604,1.54313907,2092.8,2092.3,0.91309053]
[1770612302297,0.34855226,2092.8,2092.3,0.91309053]
[1770612302469,1.54312623,2092.8,2092.3,0.91309053]
[1770612303485,1.54312623,2092.8,2091.9,0.91309053]
[1770612303486,9.22253285,2092.7,2091.9,0.91309053]
[1770612303790,0.97429887,2092.6,2091.9,0.91309053]
[1770612304905,2.16899147,2092.6,2091.9,1.19508393]
[1770612305110,1.1946926,2092.6,2092.0,0.91309053]
[1770612305420,1.1946926,2092.6,2092.1,0.001]
[1770612305775,1.1966926,2092.6,2092.1,0.001]
[1770612307801,0.002,2092.6,2092.1,0.001]
[1770612308005,0.97629887,2092.6,2092.1,0.001]
[1770612308533,0.97429887,2092.4,2092.1,0.001]
[1770612308882,0.97429887,2092.4,2091.9,0.001]
[1770612310189,1.19485733,2092.3,2091.9,0.001]
[1770612310896,0.002,2092.6,2092.0,0.91309053]
[1770612310897,1.19668949,2092.6,2092.0,0.91309053]
[1770612311277,0.002,2092.6,2092.0,0.91309053]
[1770612311678,5.12884364,2092.8,2092.4,0.91309053]
[1770612311679,0.35055226,2092.8,2092.4,0.91309053]
[1770612312308,1.54513241,2092.8,2092.4,0.91309053]
[1770612312510,1.54513241,2092.8,2092.2,0.91309053]
[1770612313785,1.54513241,2092.8,2092.2,2.10800273]
[1770612313986,1.54513241,2092.8,2092.2,0.91309053]
[1770612314187,0.35055226,2092.8,2092.3,0.91309053]
[1770612316327,0.9799365,2092.7,2092.0,2.11742744]
[1770612316492,1.54512701,2092.8,2092.0,1.19498724]
[1770612316809,1.54512701,2092.8,2092.1,2.11737946]
[1770612317107,1.54512701,2092.8,2092.1,0.92240852]
[1770612318114,1.54512701,2092.8,2092.2,0.001]
[1770612318312,0.002,2092.6,2092.2,0.001]
[1770612322322,0.9996967,2092.6,2092.2,0.001]
[1770612322490,0.9996967,2092.6,2092.0,0.001]
[1770612323010,0.9976967,2092.4,2092.0,0.001]
[1770612324211,2.19243983,2092.5,2092.0,0.001]
[1770612325711,0.9976967,2092.4,2092.0,0.001]
[1770612328628,1.19485733,2092.3,2092.0,0.001]
[1770612328998,2.19255403,2092.3,2092.0,0.001]
[1770612330121,1.19485733,2092.3,2092.0,0.001]
[1770612330418,1.19684336,2092.4,2092.2,0.001]
[1770612330718,0.002,2092.4,2092.2,0.001]
[1770612331629,0.9996967,2092.4,2092.2,0.001]
[1770612332317,0.9996967,2092.4,2092.0,0.001]
[1770612332825,1.19485733,2092.3,2092.0,0.001]
[1770612333524,1.1968378,2092.4,2092.0,0.001]
[1770612335898,0.002,2092.4,2092.0,0.94071802]
[1770612336329,0.002,2092.4,2092.0,0.001]
[1770612336636,0.9996967,2092.4,2092.0,0.001]
[1770612336939,0.9996967,2092.4,2091.6,0.93971802]
[1770612337630,0.9996967,2092.4,2091.7,0.93971802]
[1770612338435,1.19485733,2092.3,2091.7,0.93971802]
[1770612338934,1.19485733,2092.3,2091.8,0.93971802]
[1770612340042,0.002,2092.4,2091.8,0.93971802]
[1770612340330,1.19668745,2092.6,2092.2,0.93971802]
[1770612340514,0.002,2092.6,2092.2,0.93971802]
[1770612341239,0.002,2092.6,2091.9,0.93971802]
[1770612341409,0.002,2092.6,2091.9,2.13479849]
[1770612343519,0.002,2092.6,2092.0,0.001]
[1770612343838,0.002,2092.2,2092.0,0.001]
[1770612344509,0.002,2092.2,2091.8,0.001]
[1770612344738,0.002,2092.2,2091.8,0.94071802]
[1770612344911,0.002,2092.2,2091.8,2.13585054]
[1770612345332,0.002,2092.2,2091.9,0.93507557]
[1770612347330,0.002,2092.2,2091.8,0.001]
[1770612353248,0.002,2092.2,2091.8,0.93607557]
[1770612356148,0.002,2092.4,2091.9,0.93507557]
[1770612356633,0.002,2092.4,2092.0,0.001]
[1770612356840,0.002,2092.4,2092.0,0.93607557]
[1770612357237,0.002,2092.2,2092.0,0.93607557]
[1770612358452,0.002,2092.2,2092.0,2.1310499]
[1770612358638,0.002,2092.2,2092.1,0.93507557]
[1770612360444,0.002,2092.6,2092.1,0.93507557]
[1770612360638,0.002,2092.6,2092.3,0.93507557]
[1770612363658,0.002,2092.6,2092.3,2.12992923]
[1770612368662,0.002,2092.4,2092.3,2.12992923]
[1770612370464,0.002,2092.4,2092.1,2.13000955]
[1770612370666,0.002,2092.4,2092.2,1.19491159]
[1770612371471,0.002,2092.4,2092.2,2.12998716]
[1770612371670,0.002,2092.6,2092.3,0.93507557]
[1770612371847,0.35055226,2092.8,2092.4,0.93507557]
[1770612373167,0.002,2093.1,2092.5,0.93507557]
[1770612373365,0.002,2093.3,2092.7,0.93507557]
[1770612375445,0.002,2093.3,2092.7,2.12965454]
[1770612377069,0.002,2093.3,2092.8,0.95398448]
[1770612377276,0.002,2093.5,2092.8,0.95398448]
[1770612377456,0.002,2093.5,2093.0,0.95398448]
[1770612378665,0.002,2093.5,2092.9,1.19451478]
[1770612379050,0.002,2093.5,2092.9,2.14849926]
[1770612379751,0.002,2093.5,2092.9,1.19451478]
[1770612380751,0.002,2093.1,2093.0,0.95398448]
[1770612381076,0.002,2093.5,2093.0,0.95398448]
[1770612381376,0.002,2093.3,2093.0,0.95398448]
[1770612381585,0.002,2093.3,2093.0,2.1484127]
[1770612382555,0.002,2093.3,2093.0,1.19442822]
[1770612382755,0.002,2093.3,2092.3,4.77951579]
[1770612382958,0.002,2093.3,2092.9,1.19450459]
[1770612383885,0.002,2093.3,2092.8,0.95398448]
[1770612385748,0.002,2093.3,2093.0,0.95398448]
[1770612386886,0.002,2093.5,2093.0,0.95398448]
[1770612387982,0.002,2093.5,2093.1,1.19440064]
[1770612388183,0.99646871,2093.5,2092.8,1.1945344]
[1770612388382,0.99646871,2093.5,2092.9,1.19451166]
[1770612388683,0.99646871,2093.5,2092.8,1.19454098]
[1770612388982,0.99646871,2093.5,2092.9,1.19450968]
[1770612389177,0.99646871,2093.5,2092.8,1.19453181]
[1770612389377,0.99646871,2093.5,2092.8,1.19453241]
[1770612389576,0.99646871,2093.5,2092.5,1.19568699]
[1770612389775,0.99646871,2093.5,2092.6,1.19468047]
[1770612390289,2.18869819,2093.4,2092.5,0.95498448]
[1770612390670,1.19422948,2093.4,2092.5,0.95498448]
[1770612390967,0.99446871,2093.3,2092.5,0.95498448]
[1770612392388,2.18880866,2093.3,2092.6,1.19468603]
[1770612392756,1.19433995,2093.3,2092.6,2.14867051]
[1770612392963,0.002,2093.5,2092.7,0.95398448]
[1770612393465,1.19618054,2093.5,2092.7,0.95398448]
[1770612393861,0.002,2093.5,2092.7,0.95498448]
[1770612394060,0.002,2093.3,2092.7,0.95498448]
[1770612394479,0.002,2093.3,2092.9,0.95398448]
[1770612397194,0.002,2093.3,2092.7,0.95498448]
[1770612397884,0.002,2093.3,2092.7,0.001]
[1770612398186,0.002,2093.3,2092.7,0.95498448]
[1770612399276,1.19628653,2093.3,2092.7,2.14957602]
[1770612399466,0.99446871,2093.2,2092.7,0.001]
[1770612400588,0.99446871,2093.2,2092.5,0.001]
[1770612401191,0.99446871,2093.0,2092.5,0.001]
[1770612403391,2.18898349,2092.9,2092.5,0.001]
[1770612404000,0.99446871,2092.8,2092.5,0.001]
[1770612404903,1.19449286,2093.0,2092.5,0.001]
[1770612405085,2.18890514,2093.1,2092.5,0.001]
[1770612406179,1.19632127,2093.3,2092.5,0.9962309]
[1770612406576,1.19632127,2093.3,2092.7,0.001]
[1770612406776,1.19632127,2093.3,2092.7,0.9962309]
[1770612407103,0.002,2093.1,2092.7,0.9962309]
[1770612407687,0.002,2093.1,2092.8,1.19457186]
[1770612407888,0.002,2093.1,2092.8,2.18980276]
[1770612408114,0.002,2093.1,2092.9,0.9952309]
[1770612412412,0.002,2093.1,2092.9,2.18972608]
[1770612412910,0.002,2093.1,2092.7,0.001]
[1770612413214,0.5,2093.0,2092.7,0.001]
[1770612413998,0.5,2093.0,2092.6,1.19468592]
[1770612416116,0.5,2093.0,2092.6,2.18991682]
[1770612416713,0.002,2093.1,2092.7,0.9952309]
[1770612417695,0.002,2093.1,2092.9,0.9952309]
[1770612419225,0.002,2093.1,2092.9,0.9962309]
[1770612419841,0.002,2093.1,2092.9,2.19069202]
[1770612420203,0.002,2093.3,2093.0,0.9952309]
[1770612420518,1.54679245,2094.0,2093.1,0.9952309]
[1770612420715,0.92719423,2093.9,2092.9,5.52969202]
[1770612421107,0.92719423,2093.9,2093.0,0.9952309]
[1770612421303,1.54679245,2094.0,2093.0,0.9952309]
[1770612421696,2.47398668,2094.0,2093.0,0.9952309]
[1770612422214,0.92719423,2093.9,2093.0,2.18964817]
[1770612423607,0.92719423,2093.9,2093.1,0.9952309]
[1770612425998,2.12119556,2093.8,2093.1,2.18962298]
[1770612426405,0.92719423,2093.7,2092.9,1.1954853]
[1770612427122,0.92719423,2093.7,2092.9,0.001]
[1770612427326,0.92719423,2093.7,2092.9,2.19073533]
[1770612427804,0.92719423,2093.7,2093.0,1.19445396]
[1770612427999,1.19411539,2093.6,2093.0,1.19445396]
[1770612428238,2.12130962,2093.6,2093.0,1.19445396]
[1770612429154,2.12130962,2093.6,2092.9,2.1907083]
[1770612430428,0.5,2093.4,2092.9,2.1907083]
[1770612431430,1.69424824,2093.4,2092.9,0.001]
[1770612432328,1.69424824,2093.4,2093.1,0.001]
[1770612437946,1.69424824,2093.4,2092.7,5.522938]
[1770612443156,0.5,2093.4,2092.8,0.98935484]
[1770612444953,0.5,2093.4,2092.9,0.99035484]
[1770612445156,0.002,2093.2,2092.9,2.18485895]
[1770612445738,0.002,2093.2,2093.0,0.98935484]
[1770612447133,0.502,2093.4,2093.0,0.98935484]
[1770612447453,0.002,2093.4,2093.2,0.98935484]
[1770612448830,2.16972763,2093.4,2092.9,0.001]
[1770612449034,0.97544666,2093.4,2092.9,1.19551027]
[1770612449245,0.002,2093.4,2092.9,0.001]
[1770612450858,0.97544666,2093.4,2092.9,0.001]
[1770612451357,1.19428653,2093.3,2092.9,0.001]
[1770612452558,0.5,2093.1,2092.9,0.001]
[1770612454355,0.5,2093.1,2092.9,0.99035484]
[1770612456465,0.5,2093.1,2092.9,2.18485288]
[1770612459565,0.5,2093.1,2092.9,0.99035484]
[1770612459860,0.5,2093.1,2092.9,0.001]
[1770612463480,0.5,2093.1,2092.9,0.99035484]
[1770612464079,0.002,2093.2,2092.9,0.99035484]
[1770612464272,0.002,2093.2,2092.9,2.18485158]
[1770612467054,0.002,2093.2,2092.9,2.10949007]
[1770612467677,0.002,2093.2,2092.9,0.91499333]
[1770612468383,0.002,2093.2,2092.9,2.10949794]
[1770612469453,0.002,2093.2,2092.9,0.91499333]
[1770612470086,0.002,2093.2,2093.1,0.001]
[1770612480158,0.002,2093.4,2093.1,0.91499333]
[1770612480364,2.17079399,2093.7,2093.2,0.91399333]
[1770612480365,0.002,2093.7,2093.2,0.91399333]
[1770612481751,0.97473563,2093.4,2092.9,0.001]
[1770612482202,1.19451478,2092.9,2092.5,0.001]
[1770612482365,0.97473563,2092.8,2092.5,0.001]
[1770612482992,0.97473563,2092.8,2092.0,0.001]
[1770612483195,0.97473563,2092.6,2092.0,0.001]
[1770612484485,0.97473563,2092.4,2092.0,0.001]
[1770612486608,2.16959296,2092.3,2092.0,0.001]
[1770612487519,0.97473563,2092.2,2092.0,0.001]
[1770612487679,0.97473563,2092.2,2091.8,0.001]
[1770612488510,0.97473563,2092.0,2091.8,0.001]
[1770612489079,0.97473563,2092.0,2091.1,0.001]
[1770612489279,0.97473563,2092.0,2090.6,0.001]
[1770612489280,0.1024,2091.7,2090.6,0.001]
[1770612489517,0.1024,2091.2,2090.6,0.001]
[1770612489700,0.97473563,2091.0,2090.4,0.001]
[1770612489883,0.97473563,2091.0,2090.1,0.001]
[1770612489884,0.97473563,2091.0,2090.1,0.91499333]
[1770612490098,4.31473563,2091.0,2090.1,0.91499333]
[1770612490386,0.97473563,2090.9,2090.1,0.001]
[1770612490798,1.19571455,2090.8,2090.1,0.001]
[1770612491409,1.19571455,2090.8,2090.1,0.91499333]
[1770612492926,4.78285823,2090.9,2090.1,2.1110707]
[1770612492927,1.19569748,2090.9,2090.1,2.1110707]
[1770612493308,1.19569748,2090.9,2090.2,0.91399333]
[1770612494937,1.19551781,2091.2,2090.3,0.91399333]
[1770612495433,1.19551781,2091.2,2090.3,0.91499333]
[1770612496138,1.19506582,2092.0,2090.8,0.91158735]
[1770612496424,1.1969241,2092.2,2091.0,0.91158735]
[1770612496627,0.002,2092.2,2091.0,0.91158735]
[1770612496798,0.002,2092.2,2091.2,0.91158735]
[1770612497623,0.002,2092.4,2091.6,0.9052707]
[1770612498405,0.002,2092.4,2091.8,0.9052707]
[1770612498829,0.002,2092.4,2091.9,1.1950858]
[1770612499129,0.002,2092.4,2092.0,0.9052707]
[1770612499999,0.002,2092.4,2091.8,1.19513829]
[1770612500802,0.002,2092.4,2091.8,2.10040899]
[1770612501005,0.002,2092.4,2091.9,0.9052707]
[1770612501914,0.002,2092.4,2091.8,1.19513829]
[1770612502219,0.002,2092.4,2091.7,1.19515943]
[1770612502420,0.002,2092.4,2091.8,1.19514256]
[1770612503226,0.94514296,2092.4,2091.3,0.9052707]
[1770612503397,0.94514296,2092.4,2091.6,1.19524955]
[1770612505605,2.13997523,2092.4,2091.4,1.19537152]
[1770612505804,0.94514296,2092.4,2091.4,1.19537152]
[1770612506105,0.002,2092.4,2091.5,0.9052707]
[1770612507623,0.002,2092.4,2091.6,2.10052791]
[1770612507818,0.002,2092.4,2091.7,0.9052707]
[1770612508005,0.002,2092.4,2091.8,0.001]
[1770612508210,0.002,2092.4,2091.8,0.9062707]
[1770612508410,0.002,2092.2,2091.8,0.9062707]
[1770612509935,0.002,2092.2,2091.9,2.1003565]
[1770612510712,0.002,2092.2,2091.9,1.1950858]
[1770612512436,0.002,2092.2,2091.8,4.78134322]
[1770612512736,0.002,2092.2,2091.8,1.19614293]
[1770612514813,0.002,2092.2,2091.8,0.9062707]
[1770612517244,0.002,2092.2,2091.9,1.1950858]
[1770612518331,0.002,2092.2,2091.8,1.19610882]
[1770612519315,0.002,2092.2,2091.8,0.001]
[1770612520248,0.002,2092.2,2092.0,0.001]
[1770612527149,0.002,2092.2,2092.0,0.96957972]
[1770612527354,0.002,2092.4,2092.0,0.001]
[1770612530728,0.002,2092.4,2092.0,1.19602868]
[1770612531057,0.002,2092.4,2092.0,2.1646084]
[1770612532639,0.002,2092.2,2092.0,2.1646084]
[1770612533862,0.002,2092.4,2092.1,0.96857972]
[1770612534454,2.47262132,2093.0,2092.3,0.96857972]
[1770612535166,2.47262132,2093.0,2092.3,2.16339468]
[1770612535548,1.27816092,2093.0,2092.3,2.16339468]
[1770612535764,2.47262496,2093.0,2092.3,2.16339468]
[1770612536343,0.93292611,2092.9,2092.3,1.19481496]
[1770612540703,0.93292611,2092.8,2092.2,1.19491444]
[1770612541659,0.93292611,2092.8,2092.1,1.19492814]
[1770612542675,0.93292611,2092.5,2092.0,0.001]
[1770612543198,0.93292611,2092.5,2092.1,1.19492656]
[1770612543370,0.93292611,2092.7,2092.0,0.001]
[1770612544687,0.93292611,2092.5,2092.0,0.001]
[1770612545193,0.93292611,2092.5,2092.2,0.001]
[1770612546795,0.93292611,2092.3,2092.2,0.001]
[1770612547877,0.93292611,2092.3,2092.0,0.001]
[1770612548069,1.19480022,2092.4,2092.0,0.001]
[1770612548571,2.12772633,2092.4,2092.0,0.001]
[1770612550909,0.93292611,2092.3,2092.0,0.001]
[1770612552778,2.12783931,2092.3,2092.0,0.001]
[1770612554296,0.93292611,2092.2,2091.8,0.001]
[1770612554696,1.1949132,2092.3,2091.8,0.001]
[1770612554994,0.93292611,2092.3,2091.8,0.001]
[1770612555200,0.93292611,2092.3,2091.5,0.001]
[1770612555585,0.93292611,2092.3,2091.5,1.19630755]
[1770612556584,0.93292611,2092.3,2091.5,2.11160496]
[1770612556785,1.19491444,2092.2,2091.6,0.99599693]
[1770612557093,0.002,2092.6,2091.6,0.99599693]
[1770612557398,0.002,2092.6,2092.3,0.99599693]
[1770612558103,0.002,2092.5,2092.3,0.99599693]
[1770612558301,1.53970379,2093.0,2092.4,0.99599693]
[1770612558480,0.34523481,2093.0,2092.4,0.99599693]
[1770612558880,0.34523481,2093.0,2092.4,2.19075344]
[1770612559080,1.5396948,2093.0,2092.4,2.19075344]
[1770612559316,0.34523481,2093.0,2092.5,0.99599693]
[1770612561096,0.34523481,2093.0,2092.6,2.19068296]
[1770612561497,0.23930509,2093.0,2092.7,0.99599693]
[1770612563209,0.23930509,2093.0,2092.8,1.19457186]
[1770612563916,0.23930509,2093.0,2092.8,2.19056879]
[1770612565106,1e-08,2093.0,2092.9,0.99599693]
[1770612565308,1e-08,2093.0,2092.9,2.19051171]
[1770612565821,0.002,2093.2,2093.0,0.99599693]
[1770612565992,0.002,2093.3,2093.1,0.99599693]
[1770612566503,0.002,2093.3,2092.9,2.19051171]
[1770612567816,0.002,2093.3,2092.9,1.19451478]
[1770612568194,0.002,2093.3,2092.9,2.19051171]
[1770612569901,0.002,2093.3,2092.9,1.19451478]
[1770612570127,0.002,2093.1,2092.9,1.19451478]
[1770612570925,0.002,2093.1,2093.0,0.99599693]
[1770612571116,0.002,2093.3,2093.0,0.99599693]
[1770612571718,0.002,2093.3,2093.1,1.19440064]
[1770612572112,0.002,2093.3,2092.9,1.19449083]
[1770612572312,0.99996034,2093.3,2092.7,0.001]
[1770612574037,0.99796034,2093.1,2092.7,0.001]
[1770612575641,1.19434358,2093.2,2092.7,0.001]
[1770612575946,2.19428036,2093.3,2092.7,0.001]
[1770612577635,0.99796034,2093.2,2092.7,0.001]
[1770612578945,1.19440064,2093.1,2092.7,0.001]
[1770612580928,2.19236098,2093.1,2092.7,0.001]
[1770612581452,2.19236457,2093.1,2092.7,0.001]
[1770612582427,1.19440065,2093.1,2092.7,0.001]
[1770612582633,1.19440065,2093.1,2092.9,0.001]
[1770612582844,0.002,2093.0,2092.9,0.001]
[1770612587250,0.002,2093.0,2092.9,0.95455377]
[1770612587554,0.002,2093.0,2092.9,0.001]
[1770612588348,0.002,2093.0,2092.7,0.001]
[1770612591461,0.993258,2093.0,2092.2,4.53589161]
[1770612591650,0.993258,2093.0,2092.2,5.48944538]
[1770612591971,0.993258,2093.0,2092.3,1.19485194]
[1770612592650,0.993258,2093.0,2092.2,4.29455377]
[1770612592849,1.19451478,2092.9,2092.3,1.19484894]
[1770612593242,2.18577278,2092.9,2092.3,1.19484894]
[1770612595976,2.18577278,2092.9,2092.5,0.001]
[1770612596270,0.002,2092.8,2092.5,0.001]
[1770612597750,0.002,2092.8,2092.1,0.95355377]
[1770612599173,0.002,2093.4,2092.5,0.95355377]
[1770612599461,0.002,2093.4,2092.7,0.95355377]
[1770612599663,0.002,2093.4,2092.8,2.14812563]
[1770612600067,0.002,2093.4,2092.8,0.95355377]
[1770612601897,0.002,2093.4,2092.7,2.14817488]
[1770612602068,0.993258,2093.4,2092.5,1.19470371]
[1770612602270,0.993258,2093.4,2092.4,1.19479882]
[1770612602765,0.993258,2093.4,2092.3,0.95355377]
[1770612603069,0.993258,2093.4,2092.7,1.19461529]
[1770612603651,0.993258,2093.4,2092.8,2.14812391]
[1770612603652,0.002,2093.4,2092.8,2.14812391]
[1770612604051,0.002,2093.4,2092.8,0.95355377]
[1770612605173,0.993258,2093.4,2092.4,1.19476519]
[1770612605682,0.993258,2093.4,2092.4,1.19479586]
[1770612605849,0.991258,2093.2,2092.4,1.19479586]
[1770612607675,0.991258,2093.2,2092.3,2.1483745]
[1770612608342,1.19440064,2093.1,2092.3,2.1483745]
[1770612608548,1.19440064,2093.1,2092.0,0.001]
[1770612608549,0.991258,2093.0,2092.0,0.001]
[1770612609247,0.991258,2093.0,2092.4,0.001]
[1770612609580,1.04136537,2092.8,2092.0,0.001]
[1770612609766,0.991258,2092.6,2092.0,0.001]
[1770612609970,0.991258,2092.4,2091.8,0.001]
[1770612610185,0.991258,2092.4,2091.6,0.001]
[1770612610350,2.18611533,2092.3,2091.6,0.001]
[1770612610776,1.19485733,2092.3,2091.6,0.95455377]
[1770612612582,0.991258,2092.3,2091.6,0.001]
[1770612613699,4.77942933,2092.4,2091.6,1.0023549]
[1770612613870,4.77905466,2092.5,2091.6,1.0023549]
[1770612615086,1.1945827,2092.8,2091.8,0.90693394]
[1770612615293,1.1945827,2092.8,2092.0,0.90693394]
[1770612615597,0.90225005,2092.7,2091.8,0.90693394]
[1770612616596,0.90225005,2092.7,2091.7,1.24299891]
[1770612616773,0.90225005,2092.7,2091.7,0.04779884]
[1770612616968,1.19468603,2092.6,2091.8,1.19514293]
[1770612617887,1.19468603,2092.6,2091.8,2.11789893]
[1770612618577,2.15669171,2092.6,2091.8,0.922756]
[1770612619213,2.15669171,2092.6,2091.8,2.11786804]
[1770612619417,2.15669171,2092.6,2091.7,1.19516277]
[1770612620411,2.15669171,2092.6,2091.8,1.19514214]
[1770612621118,4.77874414,2092.9,2091.6,0.04880223]
[1770612621119,0.96200568,2092.5,2091.6,0.04880223]
[1770612621419,0.96200568,2092.5,2091.6,2.11901226]
[1770612621719,0.96200568,2092.5,2092.0,0.001]
[1770612622227,1.06440568,2092.8,2092.0,0.001]
[1770612623424,2.15663462,2092.7,2092.0,0.001]
[1770612623710,0.96200568,2092.6,2092.0,0.001]
[1770612625420,1.19474313,2092.5,2092.0,0.001]
[1770612627092,0.96200568,2092.4,2092.0,0.001]
[1770612627717,2.15686301,2092.3,2092.0,0.001]
[1770612627898,0.96200568,2092.2,2091.8,0.001]
[1770612630202,1.19497155,2092.1,2091.8,0.001]
[1770612631421,2.15697723,2092.1,2091.8,0.001]
[1770612633127,2.15697723,2092.1,2091.6,0.001]
[1770612633550,2.15697723,2092.1,2092.0,0.001]
[1770612633841,2.15697723,2092.1,2091.6,0.001]
[1770612634229,1.19497155,2092.1,2091.6,0.001]
[1770612636345,0.002,2092.4,2091.6,0.97156169]
[1770612636548,1.19680149,2092.4,2091.6,0.97156169]
[1770612636724,0.002,2092.4,2091.8,0.922756]
[1770612639655,0.96400568,2092.4,2091.6,0.97156169]
[1770612639958,0.96400568,2092.4,2091.6,2.11898082]
[1770612640757,0.96400568,2092.4,2091.7,1.19519706]
[1770612640952,0.96400568,2092.4,2091.7,2.11795306]
[1770612641147,0.002,2092.4,2091.8,0.922756]
[1770612643289,0.002,2092.4,2091.9,0.922756]
[1770612643835,0.002,2092.4,2092.0,2.11778468]
[1770612646680,0.002,2092.4,2092.1,0.95397004]
[1770612647377,0.002,2092.2,2092.1,0.95397004]
[1770612647750,0.002,2092.2,2092.0,1.19502868]
[1770612648180,0.002,2092.2,2092.0,2.14899872]
[1770612649255,0.002,2092.2,2091.8,0.001]
[1770612649467,0.002,2092.2,2091.8,1.1961056]
[1770612650869,0.002,2092.2,2091.9,0.95397004]
[1770612652681,0.002,2092.2,2092.0,1.19502868]
[1770612652982,0.002,2092.2,2092.0,2.14899872]
[1770612657985,0.002,2092.2,2092.1,0.95397004]
[1770612658366,0.002,2092.2,2092.0,1.19502868]
[1770612658669,0.002,2092.2,2091.9,4.78028066]
[1770612658670,0.002,2092.2,2091.9,1.19505027]
[1770612658871,0.002,2092.2,2092.0,1.19602852]
[1770612659191,0.002,2092.2,2092.0,0.001]
[1770612660706,0.002,2092.2,2092.0,0.95497004]
[1770612661211,0.002,2092.2,2092.0,2.14998142]
[1770612664195,0.002,2092.4,2092.1,0.95397004]
[1770612664689,0.002,2092.4,2092.0,1.19601138]
[1770612665822,0.002,2092.4,2092.0,0.001]
[1770612668588,0.92501114,2092.4,2092.0,0.001]
[1770612669493,0.92301114,2092.2,2091.8,0.001]
[1770612671421,0.92301114,2092.2,2092.0,0.001]
[1770612671622,0.92501114,2092.2,2092.0,0.001]
[1770612672624,0.002,2092.2,2092.0,0.95497004]
[1770612673422,0.002,2092.2,2092.0,0.001]
[1770612674541,0.92501114,2092.2,2092.0,0.001]
[1770612675019,0.92501114,2092.2,2091.8,0.001]
[1770612680832,0.92501114,2092.2,2091.5,0.001]
[1770612683217,0.002,2092.2,2091.5,0.92391427]
[1770612683416,0.94093553,2092.2,2091.7,0.001]
[1770612683613,0.93893553,2092.1,2091.7,0.001]